Cogmind - Beta 13 @@@ ROGUE MODE // 2024.02.27 @ 12:16:41 Player: Katana1232 Result: Destroyed by G-47 Trooper with Particle Gun Performance ------------- Evolutions (2) 1000 Regions Visited (4) 800 Robots Destroyed (19) 95 Value Destroyed (622) 622 Prototype IDs (0) 0 Alien Tech Used (0) 0 Bonus (0) 0 TOTAL SCORE: 2517 Bonus ------- None Cogmind --------- Core Integrity 0/550 Matter 280/300 Energy 100/100 System Corruption 0% Temperature Cool (9) Movement Core (850) Ox16 Location -8/Materials Parts ------- > --- POWER (2) -------- (None) > --- PROPULSION (3) --- (None) > --- UTILITY (3) ------ Medium Storage Unit Large Storage Unit Large Storage Unit > --- WEAPON (3) ------- (None) > --- INVENTORY (15) --- Improved Heat Sink Medium Storage Unit Compact Matter Pod (150) Peak State ------------ > --- POWER ------------ Light Ion Engine > --- PROPULSION ------- Aluminum Leg Aluminum Leg Aluminum Leg > --- UTILITY ---------- Medium Storage Unit Medium Storage Unit > --- WEAPON ----------- Particle Gun Particle Gun Rocket Launcher > --- INVENTORY -------- Aluminum Leg Improved Heat Sink Large Storage Unit Large Storage Unit Compact Matter Pod Compact Matter Pod Small Laser [Rating: 13] Favorites ----------- Power Light Ion Engine Engine Light Ion Engine Propulsion Compact Wheel Treads Light Treads Leg Aluminum Leg Wheel Compact Wheel Utility Medium Storage Unit Storage Medium Storage Unit Weapon Light Assault Rifle Energy Gun Small Laser Ballistic Gun Light Assault Rifle Launcher Rocket Launcher Build | -11 -10 -9 -9 -8 ------- Run | Yrd Mat Mat Min Mat Slots Evolved 4 | . . 2 . 2 Power 1 | . . . . 1 Propulsion 1 | . . 1 . . Utility 1 | . . . . 1 Weapon 1 | . . 1 . . Parts Attached 25 | 5 3 2 7 8 Power 2 | 1 . . 1 . Engine 2 | 1 . . 1 . Core . | . . . . . Reactor . | . . . . . Propulsion 8 | 1 1 2 3 1 Treads 2 | . . 2 . . Leg 4 | . . . 3 1 Wheel 2 | 1 1 . . . Hover . | . . . . . Flight . | . . . . . Utility 6 | 1 2 . . 3 Device . | . . . . . Storage 6 | 1 2 . . 3 Processor . | . . . . . Hackware . | . . . . . Protection . | . . . . . Artifact . | . . . . . Weapon 9 | 2 . . 3 4 Energy Gun 6 | . . . 3 3 Energy Cannon . | . . . . . Ballistic Gun 2 | 2 . . . . Ballistic Cannon . | . . . . . Launcher 1 | . . . . 1 Special Weapon . | . . . . . Impact Weapon . | . . . . . Slashing Weapon . | . . . . . Piercing Weapon . | . . . . . Special Melee Weapon . | . . . . . Unidentified Prototypes . | . . . . . Parts Lost 17 | . . 1 6 10 Power 2 | . . . 1 1 Propulsion 7 | . . 1 2 4 Utility 1 | . . . . 1 Weapon 7 | . . . 3 4 Highest Loss Streak 9 | . . 1 4 9 To Critical Strikes 1 | . . . . 1 Average Slot Usage (%) 81 | . 95 79 89 64 Engine 9 | . 14 11 8 6 Treads 7 | . . 7 20 . Leg 6 | . . . 2 19 Wheel 11 | . 27 16 9 . Storage 21 | . 24 22 22 20 Energy Gun 8 | . . . 15 12 Ballistic Gun 13 | . 28 22 11 . Launcher 1 | . . . . 6 Naked Turns . | . . . . . Heaviest Build 50 | 11 26 26 27 50 Greatest Support 40 | 16 32 40 40 30 Greatest Overweight (x) 16 | 3 . 1 . 16 Average Overweight (x) . | . . . . 2 Largest Inventory Capacity 15 | 8 10 10 10 15 Average Capacity 9 | 6 9 10 10 10 Most Carried 10 | 7 9 9 10 8 Average Carried 7 | 3 7 8 8 5 Final Capacity 15 | 8 10 10 10 15 Final Carried 9 | 7 9 7 7 3 Class Distribution -------------------- 62% | Mutant 37% | Gunner Dominant Class ---------------- Mutant | -10/Materials Mutant | -9/Materials Gunner | -9/Mines Gunner | -8/Materials Resources | -11 -10 -9 -9 -8 ----------- Run | Yrd Mat Mat Min Mat Matter Collected 574 | 207 103 37 183 44 Remotely . | . . . . . Salvage Created 712 | . 103 75 396 138 Parts 36 | . 5 11 17 3 Haulers Intercepted . | . . . . . Recyclers Shooed 2 | . . 2 . . Parts Field Recycled . | . . . . . Retrieved Matter . | . . . . . Parts Self-Destructed . | . . . . . Prevented . | . . . . . Kills | -11 -10 -9 -9 -8 ------- Run | Yrd Mat Mat Min Mat Combat Hostiles Destroyed 18 | . 3 3 9 3 Guns 18 | . 3 3 9 3 Classes Destroyed 5 | . 2 1 2 . Watcher 1 | . . 1 . . Swarmer 4 | . 1 3 . . Grunt 12 | . 2 . 7 3 Brawler 1 | . . . 1 . Duelist 1 | . . . 1 . Best Kill Streak 4 | . 2 2 4 2 Combat Bots Only 4 | . 2 2 4 2 Max Kills in Single Turn 1 | . 1 1 1 1 Gunslinging . | . . . . . Exploded . | . . . . . Melee . | . . . . . Uniques/NPCs Destroyed . | . . . . . Combat | -11 -10 -9 -9 -8 -------- Run | Yrd Mat Mat Min Mat Hostile Shots Fired 237 | . 25 8 64 140 Missed 54 | . 9 2 17 26 Damage Taken 2458 | . 194 47 591 1626 Core 648 | . 17 . 67 564 Absorbed by Shields . | . . . . . Core Remaining (%) 92 | 100 93 . 83 . Volleys Fired 85 | . 15 7 33 30 Largest 2 | . 2 2 2 2 Hottest 130 | . 40 40 80 130 Shots Fired 143 | . 30 14 60 39 Gun 143 | . 30 14 60 39 Cannon . | . . . . . Launcher . | . . . . . Special . | . . . . . Kinetic 86 | . 30 14 42 . Thermal 57 | . . . 18 39 Explosive . | . . . . . Electromagnetic . | . . . . . Robot Hit Streak 14 | . 5 2 14 10 Robot Miss Streak 5 | . 3 2 2 5 Penetration Max . | . . . . . Secondary Targets 2 | . . . 2 . Max Gunslinging Chain 1 | . . . 1 . Shots Hit Robots 94 | . 17 6 45 26 Core Hits 42 | . 7 6 21 8 Critical Kills 1 | . . 1 . . Critical Parts Destroyed . | . . . . . Critical Strikes 3 | . . 1 . 2 Burn 2 | . . . . 2 Destroy 1 | . . 1 . . Melee Attacks . | . . . . . Impact . | . . . . . Slashing . | . . . . . Piercing . | . . . . . Sneak Attacks . | . . . . . Combat Hostiles . | . . . . . Follow-up Attacks . | . . . . . Damage Inflicted 1121 | . 187 76 466 392 Guns 1121 | . 187 76 466 392 Cannons . | . . . . . Explosions . | . . . . . Melee . | . . . . . Ramming . | . . . . . Kinetic 575 | . 187 76 312 . Thermal 546 | . . . 154 392 Explosive . | . . . . . Electromagnetic . | . . . . . Impact . | . . . . . Slashing . | . . . . . Piercing . | . . . . . Highest Corruption . | . . . . . Average Corruption . | . . . . . Corruption Purged . | . . . . . Corruption Blocked . | . . . . . Overload Shots . | . . . . . Overflow Damage . | . . . . . Projectiles . | . . . . . Explosions . | . . . . . Melee . | . . . . . Knockbacks . | . . . . . Impact . | . . . . . Kinetic . | . . . . . Secondary . | . . . . . Self-Inflicted Damage . | . . . . . Shots . | . . . . . Rammed . | . . . . . Targets Rammed . | . . . . . Kicked . | . . . . . Crushed . | . . . . . Highest Temperature 460 | . 42 . 120 460 Average Temperature 146 | . 15 . 56 211 Received Heat Transfer 1065 | . 114 . 276 675 Effects 8 | . . . . 8 Shutdowns 2 | . . . . 2 Energy Bleed 3 | . . . . 3 Interference 2 | . . . . 2 Matter Decay 1 | . . . . 1 Siege Activations . | . . . . . Robots Corrupted . | . . . . . Combat Hostiles . | . . . . . Parts Fried . | . . . . . Impact Corruptions . | . . . . . Robots Melted . | . . . . . Combat Hostiles . | . . . . . Parts Melted 2 | . . . 1 1 Heat Transferred 1402 | . . . 350 1052 Parts Sabotaged . | . . . . . Parts Stolen . | . . . . . Parts Stripped . | . . . . . Power Chain Reactions . | . . . . . Alert | -11 -10 -9 -9 -8 ------- Run | Yrd Mat Mat Min Mat Peak Influence 222 | . 85 147 222 141 Initial 86 | . . 35 57 86 Average 98 | . 38 72 176 96 Maximum Alert Level 1 | . . . 1 . Low Security (%) 96 | 100 100 100 88 100 Level 1 3 | . . . 11 . Level 2 . | . . . . . Level 3 . | . . . . . Level 4 . | . . . . . Level 5 . | . . . . . High Security . | . . . . . Max Security . | . . . . . Squads Dispatched 1 | . . . . 1 Investigation . | . . . . . Extermination . | . . . . . Reinforcement 1 | . . . . 1 Assault . | . . . . . Garrison . | . . . . . Intercept . | . . . . . Searches Triggered . | . . . . . Construction Impeded . | . . . . . Haulers Reinforced . | . . . . . Active Scanning Responses . | . . . . . Cargo Convoy Interrupts . | . . . . . Stealth | -11 -10 -9 -9 -8 --------- Run | Yrd Mat Mat Min Mat Distress Signals 1 | . 1 . . . Communications Jammed . | . . . . . Distress Signals . | . . . . . Times Spotted 29 | . 6 5 9 9 Peak Tracking Total 4 | . 4 3 3 4 Tactical Retreats 1 | . . 1 . . Traps | -11 -10 -9 -9 -8 ------- Run | Yrd Mat Mat Min Mat Traps Triggered . | . . . . . Indirectly . | . . . . . Trap Hack Attempts . | . . . . . Triggered . | . . . . . Disarmed . | . . . . . Reprogrammed . | . . . . . Reused . | . . . . . Traps Extracted . | . . . . . Installed . | . . . . . Triggered . | . . . . . Machines | -11 -10 -9 -9 -8 ---------- Run | Yrd Mat Mat Min Mat Machines Disabled 1 | . . . 1 . Max in Single Turn 1 | . . . 1 . Machines Repaired . | . . . . . Machines Dismantled . | . . . . . Machines Sabotaged . | . . . . . Overloaded Fab Kills . | . . . . . Hacking | -11 -10 -9 -9 -8 --------- Run | Yrd Mat Mat Min Mat Machines Accessed . | . . . . . Terminals . | . . . . . Fabricators . | . . . . . Repair Stations . | . . . . . Recycling Units . | . . . . . Scanalyzers . | . . . . . Garrison Access . | . . . . . Total Hacks . | . . . . . Successful . | . . . . . Failed . | . . . . . Catastrophic . | . . . . . Database Lockouts . | . . . . . Manual . | . . . . . Terminals . | . . . . . Fabricators . | . . . . . Repair Stations . | . . . . . Recycling Units . | . . . . . Scanalyzers . | . . . . . Garrison Access . | . . . . . Terminal Hacks . | . . . . . Fabricator Hacks . | . . . . . Repair Station Hacks . | . . . . . Recycling Unit Hacks . | . . . . . Scanalyzer . | . . . . . Garrison Access Hacks . | . . . . . Unauthorized Hacks . | . . . . . Terminals . | . . . . . Fabricators . | . . . . . Repair Stations . | . . . . . Recycling Units . | . . . . . Scanalyzers . | . . . . . Garrison Access . | . . . . . Data Cores Recovered . | . . . . . Used . | . . . . . Hacking Detections . | . . . . . Full Trace Events . | . . . . . Feedback Events . | . . . . . Feedback Blocked . | . . . . . Robot Schematics Acquired . | . . . . . Robots Built . | . . . . . Authchips . | . . . . . Time . | . . . . . Total Robot Build Rating . | . . . . . Part Schematics Acquired . | . . . . . Parts Built . | . . . . . Authchips . | . . . . . Time . | . . . . . Total Part Build Rating . | . . . . . Parts Repaired . | . . . . . Time . | . . . . . Parts Recycled . | . . . . . Recycled Matter . | . . . . . Retrieved Matter . | . . . . . Retrieved Components . | . . . . . Parts Scanalyzed . | . . . . . Part Schematics Acquired . | . . . . . Parts Damaged . | . . . . . Bothacking | -11 -10 -9 -9 -8 ------------ Run | Yrd Mat Mat Min Mat Used RIF Installer . | . . . . . Robots Hacked . | . . . . . Non-combat . | . . . . . Combat . | . . . . . Robot Hacks Applied . | . . . . . Relay Couplers Released . | . . . . . Fabnet Peak Effective % . | . . . . . Robots Rewired . | . . . . . Allies Hacked . | . . . . . Hacks Repelled . | . . . . . Allies | -11 -10 -9 -9 -8 -------- Run | Yrd Mat Mat Min Mat Total Allies . | . . . . . Largest Group . | . . . . . Highest-Rated Group . | . . . . . Highest-Rated Ally . | . . . . . Total Orders . | . . . . . Ally Attacks . | . . . . . Total Damage . | . . . . . Kills . | . . . . . Allies Corrupted . | . . . . . Allies Melted . | . . . . . Intel | -11 -10 -9 -9 -8 ------- Run | Yrd Mat Mat Min Mat Robot Analysis Total . | . . . . . Derelict Logs Recovered 1 | . . . 1 . Drone Launches . | . . . . . Drone Recoveries . | . . . . . Exploration | -11 -10 -9 -9 -8 ------------- Run | Yrd Mat Mat Min Mat Turns Passed 1057 | 68 205 167 303 314 Spaces Moved 540 | 48 153 111 126 102 Core 39 | 24 . . . 15 Treads 132 | . . 18 114 . Legs 99 | . . . 12 87 Wheels 270 | 24 153 93 . . Hover . | . . . . . Flight . | . . . . . Fastest Speed 50 | 50 100 100 120 190 Average Speed 140 | 90 100 111 156 236 Slowest Speed 850 | 200 100 160 160 850 Overloaded Moves . | . . . . . Propulsion Burnouts . | . . . . . Robots Hopped . | . . . . . Cave-ins Triggered . | . . . . . Exploration Rate (%) 18 | 4 32 18 31 9 Regions Visited 4 Branch Regions 1 Pre-discovered Areas 1 | . . . 1 . Known Exits Taken . | . . . . . Unknown Exits Taken 4 | 1 1 1 1 . Scrap Searched 1 | . . . 1 . Spaces Dug . | . . . . . Terrain Destroyed . | . . . . . Melee . | . . . . . Projectile . | . . . . . AOE . | . . . . . Terrain Rammed . | . . . . . Walls Destroyed . | . . . . . Machines Disabled . | . . . . . Actions | -11 -10 -9 -9 -8 --------- Run | Yrd Mat Mat Min Mat Total 711 | 72 178 142 177 142 Wait 37 | 8 2 23 4 . Move 536 | 47 152 110 125 102 Hop . | . . . . . Pick Up 25 | 12 5 . 7 1 Fast Attach . | . . . . . Attach 23 | 5 3 2 7 6 Detach 1 | . . . . 1 Swap 2 | . . . . 2 Drop 2 | . 1 . 1 . Fire 85 | . 15 7 33 30 Melee . | . . . . . Ram . | . . . . . Kick . | . . . . . Crush . | . . . . . Escape Stasis . | . . . . . Rewire . | . . . . . Trap . | . . . . . Miscellaneous . | . . . . . Route ------- -11/Scrapyard -10/Materials -9/Materials -9/Mines -8/Materials History --------- Turn | Location | Event 22 | -11/Scrapyard | Discovered new exit (range 15) 69 | -11/Scrapyard | Entered Materials 246 | -10/Materials | Discovered new exit (range 15) 274 | -10/Materials | Entered another Materials area 274 | -9/Materials | Evolved 2 slots: Propulsion x1, Weapon x1 312 | -9/Materials | Build established: Mutant 381 | -9/Materials | Discovered new exit (range 16) 441 | -9/Materials | Entered Mines 731 | -9/Mines | Discovered new exit (range 5) 738 | -9/Mines | Received a Rocket Launcher from a helpful Derelict 744 | -9/Mines | Entered Materials 744 | -8/Materials | Evolved 2 slots: Power x1, Utility x1 748 | -8/Materials | Lost 4 parts (2n2w) 1020 | -8/Materials | Core integrity fell below 50% 1051 | -8/Materials | Core integrity fell below 20% 1055 | -8/Materials | Lost 9 parts (1p4n1u3w) 1058 | -8/Materials | Destroyed by G-47 Trooper with Particle Gun Last Messages --------------- Particle Gun destroyed. Penetrated by Slug. Sml. Laser destroyed. U-05 Engineer builds a Wall. Penetrated by Slug. Critical hit (Burn: +37). Slug penetrates Wall. Penetrated by Slug. K-01 Serf collects debris. Slug penetrates Wall. Aluminum Leg destroyed. Slug penetrates Wall. K-01 Serf cleans the Terminal. Penetrated by Slug. Slug penetrates Wall. Com. Matter Pod destroyed. Slug penetrates Wall. Penetrated by Slug. Critical hit (Burn: +37). Penetrated by Slug. Map ----- +----------------------------------------------------+ | ?????????????????????????????????????????????????? | | ???????????##########+######?????????????????????? | | ???? + ! ??????????????? | | ???????????#######+######## ??????????????? | | ???##+?????# # #??????????????????????????? | | ??? ?????# # #??????????????????????????? | | #### ?????# # """ #?????????!????????????????? | | ? # ?????# + """ #???????? ????????????????? | | ?? / ????# # """ #???????[ ?????????????????? | | ???# ????# # #?????? #??????????????????? | | ???# ???## %########????? #??????????????????? | | ???# #### ########### #??????????????????? | | ???# % #??????????????????? | | ???# #??????????????????? | | ???# #??????????????????? | | ???######## #### ###########???????????????? | | ?????########+###### # #???????????????? | | ?????# ## # #???????????????? | | ?????# """"" ## / #???????????????? | | ?????# """"" ## # #???????????????? | | ?????# """"" ## ###########???????????????? | | ?????# ## ##??????######????????????? | | ?????############## ####### #????????????? | | ???????????# gh ! #????????????? | | ???????????# k T #????????????? | | ???????????# @ #????????????? | | ???????????# #### ####### #????????????? | | ???????????# ????#######??????######????????????? | | ???????????# ????????????????????????????????????? | | ???????????/?????????????????????????????????????? | | ?????????????????????????????????????????????????? | | ?????????????????????????????????????????????????? | | ?????????????????????????????????????????????????? | | ?????????????????????????????????????????????????? | | ?????????????????????????????????????????????????? | | ?????????????????????????????????????????????????? | | ?????????????????????????????????????????????????? | | ?????????????????????????????????????????????????? | | ?????????????????????????????????????????????????? | | ?????????????????????????????????????????????????? | | ?????????????????????????????????????????????????? | | ?????????????????????????????????????????????????? | | ?????????????????????????????????????????????????? | | ?????????????????????????????????????????????????? | | ?????????????????????????????????????????????????? | | ?????????????????????????????????????????????????? | | ?????????????????????????????????????????????????? | | ?????????????????????????????????????????????????? | | ?????????????????????????????????????????????????? | | ?????????????????????????????????????????????????? | +----------------------------------------------------+ Best States ------------- Heat Dissipation 31 Energy Generation 10 Energy Capacity 125 Matter Stores 429 Matter Capacity 450 Sight Range 16 Terrain Scan Density 10 Evasion (%) 45 Recoil Reduction 2 Item Schematics ----------------- None Robot Schematics ------------------ None Fabricated ------------ Nothing Alien Tech Used ----------------- None Achievements -------------- None Challenges ------------ None Game ------ Seed BattleMetaBlaster Manual? 0 Play Time 00:26:14 Cumulative 10.4 hours Start 2024.02.27 @ 11:34:41 End 2024.02.27 @ 12:16:41 Sessions 1 Manual Loads 0 Difficulty Rogue Special Mode None Game No. 21 Rogue 12 Adventurer 9 Explorer 0 Win Type - Total 0 Types 0/0/0/0/0/0/0/0/0 Lore% 1 Gallery% 15 Achievement% 9 Wizard Run 0 Options --------- Layout 1 ASCII 0 Keyboard 0 Movement Mouse Keybinds 0 Fullscreen 1 Font 24/Smallcaps Map View 50x35 Zoom Use 3% Tactical HUD 0 Map Filters NONE Filters NONE Steam 1 RUN: 16d95dc0-aa1e-49a7-93e3-cb86420bded0